fUST/lending_fUST_20240906
["ID","MTS","AMOUNT","RATE_DAILY","PERIOD"]
[337310613,1725593457623,-500.0,0.00021187,2]
[337310614,1725593457633,-1058.56,0.00021187,2]
[337310615,1725593457645,-500.0,0.00021187,2]
[337310616,1725593457655,-500.0,0.00021187,2]
[337310617,1725593457665,-500.0,0.00021187,2]
[337310618,1725593457675,-500.0,0.00021187,2]
[337310619,1725593457684,-500.0,0.00021187,2]
[337310620,1725593457693,-500.0,0.00021187,2]
[337310621,1725593457703,-500.0,0.00021187,2]
[337310622,1725593457711,-500.0,0.00021187,2]
[337310623,1725593457721,-500.0,0.00021187,2]
[337310624,1725593457731,-500.0,0.00021187,2]
[337310625,1725593457740,-500.0,0.00021187,2]
[337310626,1725593457749,-500.0,0.00021187,2]
[337310627,1725593457759,-500.0,0.00021187,2]
[337310628,1725593457768,-500.0,0.00021187,2]
[337310629,1725593457778,-491.77986897,0.00021187,2]
[337310630,1725593457787,-500.0,0.00021187,2]
[337310631,1725593457797,-246.24682982,0.00021187,2]
[337310632,1725593457807,-500.0,0.00021187,2]
[337310633,1725593457816,-500.0,0.00021187,2]
[337310634,1725593457912,-500.0,0.00021187,2]
[337310635,1725593457925,-500.0,0.00021187,2]
[337310636,1725593457936,-622.59827398,0.00021187,2]
[337310637,1725593457947,-500.0,0.00021187,2]
[337310638,1725593457957,-500.0,0.00021187,2]
[337310639,1725593457966,-500.0,0.00021187,2]
[337310640,1725593457976,-500.0,0.00021187,2]
[337310641,1725593457985,-500.0,0.00021187,2]
[337310642,1725593457994,-500.0,0.00021187,2]
[337310643,1725593458003,-517.79194516,0.00021187,2]
[337310644,1725593458013,-636.39,0.00021187,2]
[337310645,1725593458024,-500.0,0.00021187,2]
[337310646,1725593458035,-1466.92,0.00021187,2]
[337310647,1725593458045,-513.37584314,0.00021187,2]
[337310648,1725593458054,-500.0,0.00021187,2]
[337310649,1725593458064,-1269.22,0.00021187,2]
[337310650,1725593458074,-612.19,0.00021187,2]
[337310651,1725593458084,-500.0,0.00021189,2]
[337310652,1725593458093,-500.0,0.00021189,2]
[337310653,1725593458102,-1805.39,0.00021189,2]
[337310654,1725593458112,-697.15,0.00021189,2]
[337310655,1725593458123,-987.68,0.00021189,2]
[337310656,1725593458134,-500.0,0.00021189,2]
[337310657,1725593458145,-533.47806872,0.00021189,2]
[337310658,1725593458156,-500.0,0.00021189,2]
[337310659,1725593458166,-500.0,0.00021189,2]
[337310660,1725593458176,-500.0,0.00021189,2]
[337310661,1725593458186,-988.36,0.00021189,2]
[337310662,1725593458195,-500.0,0.00021189,2]
[337310663,1725593458205,-610.97017069,0.00021189,2]
[337310664,1725593458214,-2185.26,0.00021189,2]
[337310665,1725593458224,-500.0,0.00021189,2]
[337310666,1725593458233,-1090.33,0.00021189,2]
[337310667,1725593458243,-500.0,0.00021189,2]
[337310668,1725593458254,-1116.36,0.00021189,2]
[337310669,1725593458263,-739.19,0.00021189,2]
[337310670,1725593458273,-515.36735278,0.00021189,2]
[337310671,1725593458283,-500.0,0.00021189,2]
[337310672,1725593458293,-2474.64,0.00021189,2]
[337310673,1725593458303,-500.0,0.00021189,2]
[337310674,1725593458312,-500.0,0.00021189,2]
[337310675,1725593458322,-500.0,0.00021189,2]
[337310676,1725593458332,-500.0,0.00021189,2]
[337310677,1725593458341,-604.96,0.00021189,2]
[337310678,1725593458351,-2081.18,0.00021189,2]
[337310679,1725593458360,-500.0,0.00021189,2]
[337310680,1725593458371,-500.0,0.00021189,2]
[337310681,1725593458384,-500.0,0.00021189,2]
[337310682,1725593458394,-774.78,0.00021189,2]
[337310683,1725593458404,-1364.58,0.00021189,2]
[337310684,1725593458413,-500.0,0.00021189,2]
[337310685,1725593458423,-500.0,0.00021189,2]
[337310686,1725593458433,-500.0,0.00021189,2]
[337310687,1725593458442,-500.0,0.00021189,2]
[337310688,1725593458452,-500.0,0.00021189,2]
[337310689,1725593458463,-500.0,0.00021189,2]
[337310690,1725593458472,-553.64941044,0.00021189,2]
[337310691,1725593458481,-751.48,0.00021189,2]
[337310692,1725593458491,-500.0,0.00021189,2]
[337310693,1725593458501,-500.0,0.00021189,2]
[337310694,1725593458511,-1510.68,0.00021189,2]
[337310695,1725593458523,-704.01,0.00021189,2]
[337310696,1725593458532,-836.44,0.00021189,2]
[337310697,1725593458542,-500.0,0.00021189,2]
[337310698,1725593458551,-1159.42,0.00021189,2]
[337310699,1725593458562,-500.0,0.00021189,2]
[337310700,1725593458571,-768.94,0.00021189,2]
[337310701,1725593458581,-500.0,0.00021189,2]
[337310702,1725593458590,-500.0,0.00021189,2]
[337310703,1725593458599,-500.0,0.00021189,2]
[337310704,1725593458609,-500.0,0.00021189,2]
[337310705,1725593458618,-3790.5,0.00021189,2]
[337310706,1725593458627,-500.0,0.00021189,2]
[337310707,1725593458640,-500.0,0.00021189,2]
[337310708,1725593458650,-3000.0,0.0002119,2]
[337310709,1725593458659,-3000.0,0.000212,2]
[337310710,1725593458669,-500.0,0.0002121,2]
[337310711,1725593458680,-608.37,0.0002121,2]
[337310712,1725593458692,-500.0,0.0002121,2]
[337310713,1725593458703,-825.57,0.0002121,2]
[337310714,1725593458713,-500.0,0.0002121,2]
[337310715,1725593458723,-500.0,0.0002121,2]
[337310716,1725593458734,-500.0,0.0002121,2]
[337310717,1725593458745,-500.0,0.0002121,2]
[337310718,1725593458756,-500.0,0.0002121,2]
[337310719,1725593458766,-500.0,0.0002121,2]
[337310720,1725593458776,-500.0,0.0002121,2]
[337310721,1725593458786,-500.0,0.0002121,2]
[337310722,1725593458796,-500.0,0.0002121,2]
[337310723,1725593458805,-506.77897216,0.0002121,2]
[337310724,1725593458814,-578.77,0.0002121,2]
[337310725,1725593458824,-500.0,0.0002121,2]
[337310726,1725593458834,-3000.0,0.0002121,2]
[337310727,1725593458846,-3000.0,0.0002122,2]
[337310728,1725593458858,-501.01247489,0.00021221,2]
[337310729,1725593458868,-1000.0,0.00021221,2]
[337310730,1725593458877,-401.33349491,0.00021221,2]
[337310731,1725593458887,-553.41967235,0.00021221,2]
[337310732,1725593458897,-3000.0,0.0002123,2]
[337310733,1725593458907,-3000.0,0.0002124,2]
[337310734,1725593458916,-3000.0,0.0002125,2]
[337310735,1725593458926,-3000.0,0.0002126,2]
[337310736,1725593458935,-3000.0,0.0002127,2]
[337310737,1725593458945,-3000.0,0.0002128,2]
[337310738,1725593458955,-3000.0,0.0002129,2]
[337310739,1725593458964,-3000.0,0.000213,2]
[337310740,1725593458974,-3000.0,0.0002131,2]
[337310741,1725593458983,-3000.0,0.0002132,2]
[337310742,1725593458992,-3000.0,0.0002133,2]
[337310743,1725593459002,-3000.0,0.0002134,2]
[337310744,1725593459011,-3000.0,0.0002135,2]
[337310745,1725593459023,-3000.0,0.0002136,2]
[337310746,1725593459034,-3000.0,0.0002137,2]
[337310747,1725593459043,-3000.0,0.0002138,2]
[337310748,1725593459052,-3000.0,0.0002139,2]
[337310749,1725593459063,-3000.0,0.000214,2]
[337310750,1725593459072,-3000.0,0.0002141,2]
[337310751,1725593459082,-3000.0,0.0002142,2]
[337310752,1725593459092,-3000.0,0.0002143,2]
[337310753,1725593459102,-3000.0,0.0002144,2]
[337310754,1725593459113,-2933.35,0.00021442,2]
[337310755,1725593459124,-10717.05,0.00021442,2]
[337310756,1725593459136,-1177.07,0.00021442,2]
[337310757,1725593459147,-1252.65,0.00021442,2]
[337310758,1725593459157,-529.83994358,0.00021442,2]
[337310759,1725593459169,-664.99,0.00021442,2]
[337310760,1725593459180,-500.0,0.00021442,2]
[337310761,1725593459190,-15307.58,0.00021442,2]
[337310762,1725593459200,-1213.59,0.00021442,2]
[337310763,1725593459211,-552.35,0.00021442,2]
[337310764,1725593459222,-659.16,0.00021442,2]
[337310765,1725593459233,-2904.94,0.00021442,2]
[337310766,1725593459244,-2679.31,0.00021442,2]
[337310767,1725593459256,-500.0,0.00021442,2]
[337310768,1725593459266,-3747.51,0.00021442,2]
[337310769,1725593459276,-1683.72,0.00021442,2]
[337310770,1725593459288,-1813.24,0.00021442,2]
[337310771,1725593459299,-500.0,0.00021442,2]
[337310772,1725593459311,-500.0,0.00021442,2]
[337310773,1725593459322,-500.0,0.00021442,2]
[337310774,1725593459332,-1831.36,0.00021442,2]
[337310775,1725593459343,-500.0,0.00021442,2]
[337310776,1725593459354,-2172.16,0.00021443,2]
[337310777,1725593459363,-2026.03,0.00021443,2]
[337310778,1725593459373,-500.0,0.00021443,2]
[337310779,1725593459388,-1752.14,0.00021443,2]
[337310780,1725593459399,-500.0,0.00021443,2]
[337310781,1725593459410,-12734.97,0.00021443,2]
[337310782,1725593459423,-2670.35,0.00021443,2]
[337310783,1725593459433,-2272.45,0.00021443,2]
[337310784,1725593459443,-550.57,0.00021443,2]
[337310785,1725593459454,-1764.86,0.00021443,2]
[337310786,1725593459463,-1698.33,0.00021443,2]
[337310787,1725593459472,-500.0,0.00021443,2]
[337310788,1725593459481,-500.0,0.00021443,2]
[337310789,1725593459491,-3979.67,0.00021443,2]
[337310790,1725593459500,-500.0,0.00021443,2]
[337310791,1725593459510,-2381.91,0.00021443,2]
[337310792,1725593459519,-302.30551473,0.00021443,2]
[337310793,1725593459528,-1314.22,0.00021443,2]
[337310794,1725593459537,-753.41,0.00021443,2]
[337310795,1725593459547,-572.53,0.00021443,2]
[337310796,1725593459556,-888.48,0.00021443,2]
[337310797,1725593459566,-852.67,0.00021443,2]
[337310798,1725593459575,-5146.8,0.00021443,2]
[337310799,1725593459584,-500.0,0.00021443,2]
[337310800,1725593459594,-1996.99,0.00021443,2]
[337310801,1725593459603,-500.0,0.00021443,2]
[337310802,1725593459613,-2269.72,0.00021443,2]
[337310803,1725593459622,-500.0,0.00021443,2]
[337310804,1725593459631,-2344.78,0.00021443,2]
[337310805,1725593459641,-504.42,0.00021443,2]
[337310806,1725593459650,-500.0,0.00021443,2]
[337310807,1725593459659,-1321.4,0.00021443,2]
[337310808,1725593459669,-500.0,0.00021443,2]
[337310809,1725593459679,-500.0,0.00021443,2]
[337310810,1725593459689,-2918.83,0.00021443,2]
[337310811,1725593459698,-771.77,0.00021443,2]
[337310812,1725593459707,-500.0,0.00021443,2]
[337310813,1725593459717,-500.0,0.00021443,2]
[337310814,1725593459726,-3000.0,0.0002145,2]
[337310815,1725593459736,-2411.63392059,0.0002146,2]
[337310816,1725593459746,-500.0,0.0002146,2]
[337310817,1725593459755,-531.87087194,0.0002146,2]
[337310818,1725593459764,-876.54,0.0002146,2]
[337310819,1725593459773,-596.98,0.0002146,2]
[337310820,1725593459783,-500.0,0.0002146,2]
[337310821,1725593459792,-1004.06,0.0002146,2]
[337310822,1725593459875,-500.0,0.0002146,2]
[337310823,1725593459892,-542.68,0.0002146,2]
[337310824,1725593459902,-500.0,0.0002146,2]
[337310825,1725593459911,-500.0,0.0002146,2]
[337310826,1725593459920,-1328.23,0.0002146,2]
[337310827,1725593459929,-500.0,0.0002146,2]
[337310828,1725593459938,-506.34836887,0.0002146,2]
[337310829,1725593459947,-500.0,0.0002146,2]
[337310830,1725593459956,-500.0,0.0002146,2]
[337310831,1725593459966,-615.68,0.0002146,2]
[337310832,1725593459975,-3000.0,0.0002146,2]
[337310833,1725593459985,-863.59,0.0002146,2]
[337310834,1725593459994,-500.0,0.0002146,2]
[337310835,1725593460003,-526.62,0.0002146,2]
[337310836,1725593460013,-500.0,0.0002146,2]
[337310837,1725593460024,-1059.43,0.0002146,2]
[337310838,1725593460034,-518.41738322,0.0002146,2]
[337310839,1725593460043,-500.0,0.0002146,2]
[337310840,1725593460052,-500.0,0.0002146,2]
[337310841,1725593460062,-500.0,0.0002146,2]
[337310842,1725593460073,-500.0,0.0002146,2]
[337310843,1725593460084,-500.0,0.0002146,2]
[337310844,1725593460094,-500.0,0.0002146,2]
[337310845,1725593460105,-500.0,0.0002146,2]
[337310846,1725593460116,-500.0,0.0002146,2]
[337310847,1725593460127,-634.3813728,0.0002146,2]
[337310848,1725593460138,-1281.9,0.0002146,2]
[337310849,1725593460150,-500.0,0.0002146,2]
[337310850,1725593460159,-500.0,0.0002146,2]
[337310851,1725593460169,-578.93,0.0002146,2]
[337310852,1725593460180,-670.95,0.0002146,2]
[337310853,1725593460189,-2461.39,0.0002146,2]
[337310854,1725593460198,-500.0,0.0002146,2]
[337310855,1725593460208,-500.0,0.0002146,2]
[337310856,1725593460218,-500.0,0.0002146,2]
[337310857,1725593460228,-1874.78,0.0002146,2]
[337310858,1725593460238,-973.18,0.0002146,2]
[337310859,1725593460248,-500.0,0.0002146,2]
[337310860,1725593460258,-1577.08,0.0002146,2]
[337310861,1725593460268,-500.0,0.0002146,2]
[337310862,1725593460277,-500.0,0.0002146,2]
[337310863,1725593460287,-500.0,0.0002146,2]
[337310864,1725593460296,-500.0,0.0002146,2]
[337310865,1725593460307,-500.0,0.0002146,2]
[337310866,1725593460317,-638.04,0.0002146,2]
[337310867,1725593460326,-500.0,0.0002146,2]
[337310868,1725593460335,-534.22516088,0.0002146,2]
[337310869,1725593460345,-690.77,0.0002146,2]
[337310870,1725593460354,-500.0,0.0002146,2]
[337310871,1725593460363,-500.0,0.0002146,2]
[337310872,1725593460373,-500.0,0.0002146,2]
[337310873,1725593460384,-2150.55,0.0002146,2]
[337310874,1725593460394,-500.0,0.0002146,2]
[337310875,1725593460403,-2199.22,0.0002146,2]
[337310876,1725593460413,-1666.75,0.0002146,2]
[337310877,1725593460423,-3102.05,0.0002146,2]
[337310878,1725593460432,-500.0,0.0002146,2]
[337310879,1725593460443,-12189.54,0.0002146,2]
[337310880,1725593460452,-500.0,0.0002146,2]
[337310881,1725593460463,-500.0,0.0002146,2]
[337310882,1725593460472,-416.1199134,0.0002146,2]
[337310883,1725593460482,-470.1246147,0.0002146,2]
[337310884,1725593460493,-1450.49,0.0002146,2]
[337310885,1725593460503,-2127.99,0.0002146,2]
[337310886,1725593460515,-500.0,0.0002146,2]
[337310887,1725593460524,-500.0,0.0002146,2]
[337310888,1725593460533,-500.0,0.0002146,2]
[337310889,1725593460543,-500.0,0.0002146,2]
[337310890,1725593460553,-500.0,0.0002146,2]
[337310891,1725593460562,-1010.3,0.0002146,2]
[337310892,1725593460572,-672.49,0.0002146,2]
[337310893,1725593460581,-500.0,0.0002146,2]
[337310894,1725593460592,-500.0,0.0002146,2]
[337310895,1725593460602,-1117.75,0.0002146,2]
[337310896,1725593460612,-917.61,0.0002146,2]
[337310897,1725593460621,-655.17,0.0002146,2]
[337310898,1725593460631,-500.0,0.0002146,2]
[337310899,1725593460640,-500.0,0.0002146,2]
[337310900,1725593460649,-891.96,0.0002146,2]
[337310901,1725593460659,-500.0,0.0002146,2]
[337310902,1725593460668,-500.0,0.0002146,2]
[337310903,1725593460676,-929.52,0.0002146,2]
[337310904,1725593460686,-3772.49,0.0002146,2]
[337310905,1725593460695,-595.04,0.0002146,2]
[337310906,1725593460704,-25483.24,0.0002146,2]
[337310907,1725593460713,-500.0,0.0002146,2]
[337310908,1725593460722,-500.0,0.0002146,2]
[337310909,1725593460732,-500.0,0.0002146,2]
[337310910,1725593460746,-500.0,0.0002146,2]
[337310911,1725593460758,-500.0,0.0002146,2]
[337310912,1725593460768,-500.0,0.0002146,2]
[337310913,1725593460778,-500.0,0.0002146,2]
[337310914,1725593460787,-500.0,0.0002146,2]
[337310915,1725593460797,-500.0,0.0002146,2]
[337310916,1725593460807,-500.0,0.00021461,2]
[337310917,1725593460817,-537.94,0.00021461,2]
[337310918,1725593460826,-500.0,0.00021461,2]
[337310919,1725593460836,-500.0,0.00021461,2]
[337310920,1725593460845,-288.98842073,0.00021461,2]
[337310921,1725593460855,-500.0,0.00021461,2]
[337310922,1725593460863,-500.0,0.00021461,2]
[337310923,1725593460873,-559.53349985,0.00021461,2]
[337310924,1725593460882,-336.12123086,0.00021461,2]
[337310925,1725593460892,-1853.75,0.00021461,2]
[337310926,1725593460902,-500.0,0.00021461,2]
[337310927,1725593460911,-500.0,0.00021461,2]
[337310928,1725593460920,-686.4,0.00021461,2]
[337310929,1725593460929,-500.0,0.00021461,2]
[337310930,1725593460939,-500.0,0.00021461,2]
[337310931,1725593460948,-500.0,0.00021461,2]
[337310932,1725593460957,-546.92,0.00021461,2]
[337310933,1725593460967,-500.0,0.00021461,2]
[337310934,1725593460976,-500.0,0.00021461,2]
[337310935,1725593460985,-500.0,0.00021461,2]
[337310936,1725593460997,-500.0,0.00021461,2]
[337310937,1725593461005,-500.0,0.00021461,2]
[337310938,1725593461014,-500.0,0.00021461,2]
[337310939,1725593461024,-500.0,0.00021461,2]
[337310940,1725593461034,-500.0,0.00021461,2]
[337310941,1725593461043,-656.95,0.00021461,2]
[337310942,1725593461053,-500.0,0.00021461,2]
[337310943,1725593461062,-500.0,0.00021461,2]
[337310944,1725593461072,-500.0,0.00021461,2]
[337310945,1725593461083,-500.0,0.00021461,2]
[337310946,1725593461094,-500.0,0.00021461,2]
[337310947,1725593461105,-500.0,0.00021461,2]
[337310948,1725593461114,-500.0,0.00021461,2]
[337310949,1725593461124,-500.0,0.00021461,2]
[337310950,1725593461134,-500.0,0.00021461,2]
[337310951,1725593461143,-500.0,0.00021461,2]
[337310952,1725593461153,-500.0,0.00021461,2]
[337310953,1725593461162,-500.0,0.00021461,2]
[337310954,1725593461171,-500.0,0.00021461,2]
[337310955,1725593461180,-277.01815204,0.00021461,2]
[337310956,1725593461190,-500.0,0.00021461,2]
[337310957,1725593461199,-385.73250257,0.00021461,2]
[337310958,1725593461209,-500.0,0.00021461,2]
[337310959,1725593461219,-500.0,0.00021461,2]
[337310960,1725593461229,-500.0,0.00021461,2]
[337310961,1725593461240,-513.67934253,0.00021461,2]
[337310962,1725593461250,-500.0,0.00021461,2]
[337310963,1725593461259,-500.0,0.00021461,2]
[337310964,1725593461269,-500.0,0.00021461,2]
[337310965,1725593461279,-500.0,0.00021461,2]
[337310966,1725593461288,-500.0,0.00021461,2]
[337310967,1725593461298,-500.0,0.00021461,2]
[337310968,1725593461308,-500.0,0.00021461,2]
[337310969,1725593461319,-500.0,0.00021461,2]
[337310970,1725593461328,-500.0,0.00021461,2]
[337310971,1725593461338,-500.0,0.00021461,2]
[337310972,1725593461348,-500.0,0.00021461,2]
[337310973,1725593461358,-500.0,0.00021461,2]
[337310974,1725593461367,-500.0,0.00021461,2]
[337310975,1725593461377,-500.0,0.00021461,2]
[337310976,1725593461392,-500.0,0.00021461,2]
[337310977,1725593461401,-500.0,0.00021461,2]
[337310978,1725593461411,-500.0,0.00021461,2]
[337310979,1725593461420,-500.0,0.00021461,2]
[337310980,1725593461431,-701.01,0.00021461,2]
[337310981,1725593461440,-500.0,0.00021461,2]
[337310982,1725593461449,-514.55569021,0.00021461,2]
[337310983,1725593461460,-500.0,0.00021461,2]
[337310984,1725593461470,-512.53129942,0.00021461,2]
[337310985,1725593461480,-615.67430142,0.00021461,2]
[337310986,1725593461490,-373.8684607,0.00021461,2]
[337310987,1725593461501,-500.0,0.00021461,2]
[337310988,1725593461511,-500.0,0.00021461,2]
[337310989,1725593461522,-500.0,0.00021461,2]
[337310990,1725593461534,-500.0,0.00021461,2]
[337310991,1725593461544,-500.0,0.00021461,2]
[337310992,1725593461554,-500.0,0.00021461,2]
[337310993,1725593461564,-500.0,0.00021461,2]
[337310994,1725593461575,-505.7,0.00021461,2]
[337310995,1725593461585,-500.0,0.00021461,2]
[337310996,1725593461675,-500.0,0.00021461,2]
[337310997,1725593461686,-1058.56,0.00021461,2]
[337310998,1725593461698,-500.0,0.00021461,2]
[337310999,1725593461709,-500.0,0.00021461,2]
[337311000,1725593461721,-500.0,0.00021461,2]
[337311001,1725593461732,-500.0,0.00021461,2]
[337311002,1725593461744,-500.0,0.00021461,2]
[337311003,1725593461757,-500.0,0.00021461,2]
[337311004,1725593461768,-500.0,0.00021461,2]
[337311005,1725593461777,-500.0,0.00021461,2]
[337311006,1725593461785,-500.0,0.00021461,2]
[337311007,1725593461794,-500.0,0.00021461,2]
[337311008,1725593461803,-500.0,0.00021461,2]
[337311009,1725593461812,-461.64801958,0.00021461,2]
[337311010,1725593461822,-500.0,0.00021461,2]
[337311011,1725593461831,-500.0,0.00021461,2]
[337311012,1725593461840,-504.31400898,0.00021461,2]
[337311013,1725593461850,-500.0,0.00021461,2]
[337311014,1725593461861,-500.0,0.00021461,2]
[337311015,1725593461873,-506.92353123,0.00021461,2]
[337311016,1725593461883,-500.0,0.00021461,2]
[337311017,1725593461896,-500.0,0.00021461,2]
[337311018,1725593461906,-500.0,0.00021461,2]
[337311019,1725593461916,-500.0,0.00021461,2]
[337311020,1725593461926,-500.0,0.00021461,2]
[337311021,1725593461937,-500.0,0.00021461,2]
[337311022,1725593461947,-500.0,0.00021461,2]
[337311023,1725593461957,-636.39,0.00021461,2]
[337311024,1725593461967,-500.0,0.00021461,2]
[337311025,1725593461976,-1466.92,0.00021461,2]
[337311026,1725593461985,-500.0,0.00021461,2]
[337311027,1725593461995,-1269.22,0.00021461,2]
[337311028,1725593462005,-612.19,0.00021461,2]
[337311029,1725593462015,-500.0,0.00021463,2]
[337311030,1725593462024,-331.2948753,0.00021463,2]
[337311031,1725593462034,-1805.39,0.00021463,2]
[337311032,1725593462043,-697.15,0.00021463,2]
[337311033,1725593462053,-987.68,0.00021463,2]
[337311034,1725593462062,-263.80958567,0.00021463,2]
[337311035,1725593462072,-500.0,0.00021463,2]
[337311036,1725593462082,-500.0,0.00021463,2]
[337311037,1725593462092,-500.0,0.00021463,2]
[337311038,1725593462105,-988.36,0.00021463,2]
[337311039,1725593462115,-500.0,0.00021463,2]
[337311040,1725593462126,-2185.26,0.00021463,2]
[337311041,1725593462136,-1090.33,0.00021463,2]
[337311042,1725593462148,-500.0,0.00021463,2]
[337311043,1725593462158,-1116.36,0.00021463,2]
[337311044,1725593462168,-739.19,0.00021463,2]
[337311045,1725593462176,-500.0,0.00021463,2]
[337311046,1725593462186,-2474.64,0.00021463,2]
[337311047,1725593462195,-500.0,0.00021463,2]
[337311048,1725593462205,-500.0,0.00021463,2]
[337311049,1725593462215,-500.0,0.00021463,2]
[337311050,1725593462226,-500.0,0.00021463,2]
[337311051,1725593462237,-604.96,0.00021463,2]
[337311052,1725593462249,-2081.18,0.00021463,2]
[337311053,1725593462258,-500.0,0.00021463,2]
[337311054,1725593462267,-500.0,0.00021463,2]
[337311055,1725593462276,-500.0,0.00021463,2]
[337311056,1725593462285,-774.78,0.00021463,2]
[337311057,1725593462295,-1364.58,0.00021463,2]
[337311058,1725593462304,-500.0,0.00021463,2]
[337311059,1725593462314,-500.0,0.00021463,2]
[337311060,1725593462324,-500.0,0.00021463,2]
[337311061,1725593462334,-500.0,0.00021463,2]
[337311062,1725593462344,-500.0,0.00021463,2]
[337311063,1725593462354,-500.0,0.00021463,2]
[337311064,1725593462363,-751.48,0.00021463,2]
[337311065,1725593462372,-500.0,0.00021463,2]
[337311066,1725593462385,-500.0,0.00021463,2]
[337311067,1725593462395,-1510.68,0.00021463,2]
[337311068,1725593462404,-704.01,0.00021463,2]
[337311069,1725593462413,-836.44,0.00021463,2]
[337311070,1725593462424,-500.0,0.00021463,2]
[337311071,1725593462433,-1159.42,0.00021463,2]
[337311072,1725593462442,-500.0,0.00021463,2]
[337311073,1725593462451,-768.94,0.00021463,2]
[337311074,1725593462463,-500.0,0.00021463,2]
[337311075,1725593462472,-500.0,0.00021463,2]
[337311076,1725593462481,-500.0,0.00021463,2]
[337311077,1725593462493,-500.0,0.00021463,2]
[337311078,1725593462502,-3790.5,0.00021463,2]
[337311079,1725593462511,-500.0,0.00021463,2]
[337311080,1725593462521,-500.0,0.00021463,2]
[337311081,1725593462530,-3000.0,0.0002147,2]
[337311082,1725593462540,-3000.0,0.0002148,2]
[337311083,1725593462549,-500.0,0.00021484,2]
[337311084,1725593462558,-608.37,0.00021484,2]
[337311085,1725593462567,-500.0,0.00021484,2]
[337311086,1725593462576,-825.57,0.00021484,2]
[337311087,1725593462587,-500.0,0.00021484,2]
[337311088,1725593462596,-500.0,0.00021484,2]
[337311089,1725593462606,-500.0,0.00021484,2]
[337311090,1725593462615,-500.0,0.00021484,2]
[337311091,1725593462624,-500.0,0.00021484,2]
[337311092,1725593462633,-500.0,0.00021484,2]
[337311093,1725593462642,-500.0,0.00021484,2]
[337311094,1725593462652,-500.0,0.00021484,2]
[337311095,1725593462661,-500.0,0.00021484,2]
[337311096,1725593462670,-578.77,0.00021484,2]
[337311097,1725593462679,-500.0,0.00021484,2]
[337311098,1725593462688,-3000.0,0.0002149,2]
[337311099,1725593462697,-3000.0,0.000215,2]
[337311100,1725593462706,-3000.0,0.0002151,2]
[337311101,1725593462715,-3000.0,0.0002152,2]
[337311102,1725593462724,-1000.0,0.00021521,2]
[337311103,1725593462733,-3000.0,0.0002153,2]
[337311104,1725593462744,-3000.0,0.0002154,2]
[337311105,1725593462754,-3000.0,0.0002155,2]
[337311106,1725593462762,-3000.0,0.0002156,2]
[337311107,1725593462771,-4907.918983,0.0002157,2]
[337311108,1725593462781,-2172.16,0.00021716,2]
[337311109,1725593462790,-2026.03,0.00021716,2]
[337311110,1725593462799,-500.0,0.00021716,2]
[337311111,1725593462808,-1752.14,0.00021716,2]
[337311112,1725593462817,-500.0,0.00021716,2]